Cogmind - Beta 13 @@@ ROGUE MODE // 2024.03.31 @ 21:36:41 Player: prestanton Result: Destroyed by as-46091 with Assembled Heavy Rifle Performance ------------- Evolutions (0) 0 Regions Visited (4) 800 Robots Destroyed (9) 45 Value Destroyed (78) 78 Prototype IDs (1) 20 Alien Tech Used (0) 0 Bonus (250) 250 TOTAL SCORE: 1193 Bonus ------- Aligned with FarCom 300 Friendly Fire -50 Cogmind --------- Core Integrity 0/250 Matter 101/300 Energy 42/100 System Corruption 0% Temperature Cool (56) Movement Core (300) Ox5 Location -9/Mines Parts ------- > --- POWER (1) -------- (None) > --- PROPULSION (2) --- (None) > --- UTILITY (2) ------ Small Storage Unit > --- WEAPON (2) ------- Guided Plasma Cannon Mini Grenade Launcher > --- INVENTORY (8) ---- Light Ion Engine Assault Rifle Light Assault Rifle Light Assault Rifle Improved Light Cannon EMP Blaster Grenade Launcher Peak State ------------ > --- POWER ------------ Light Ion Engine > --- PROPULSION ------- Aluminum Leg Aluminum Leg > --- UTILITY ---------- Small Storage Unit > --- WEAPON ----------- Guided Plasma Cannon Mini Grenade Launcher > --- INVENTORY -------- Light Ion Engine Assault Rifle Light Assault Rifle Light Assault Rifle Improved Light Cannon EMP Blaster Grenade Launcher [Rating: 14] Favorites ----------- Power Light Ion Engine Engine Light Ion Engine Propulsion Aluminum Leg Leg Aluminum Leg Utility Small Storage Unit Storage Small Storage Unit Weapon Light Assault Rifle Energy Cannon Guided Plasma Cannon Ballistic Gun Light Assault Rifle Ballistic Cannon Improved Light Cannon Launcher Mini Grenade Launcher Build | -11 -10 -10 -10 -9 ------- Run | Yrd Mat Min Exi Min Slots Evolved . | . . . . . Power . | . . . . . Propulsion . | . . . . . Utility . | . . . . . Weapon . | . . . . . Parts Attached 12 | 6 2 1 1 2 Power 1 | 1 . . . . Engine 1 | 1 . . . . Core . | . . . . . Reactor . | . . . . . Propulsion 2 | 2 . . . . Treads . | . . . . . Leg 2 | 2 . . . . Wheel . | . . . . . Hover . | . . . . . Flight . | . . . . . Utility 1 | 1 . . . . Device . | . . . . . Storage 1 | 1 . . . . Processor . | . . . . . Hackware . | . . . . . Protection . | . . . . . Artifact . | . . . . . Weapon 8 | 2 2 1 1 2 Energy Gun . | . . . . . Energy Cannon 2 | . . . 1 1 Ballistic Gun 3 | 2 . . . 1 Ballistic Cannon 1 | . 1 . . . Launcher 2 | . 1 1 . . Special Weapon . | . . . . . Impact Weapon . | . . . . . Slashing Weapon . | . . . . . Piercing Weapon . | . . . . . Special Melee Weapon . | . . . . . Unidentified Prototypes 1 | . . . 1 . Parts Lost 3 | . . . . 3 Power 1 | . . . . 1 Propulsion 2 | . . . . 2 Utility . | . . . . . Weapon . | . . . . . Highest Loss Streak 3 | . . . . 3 To Critical Strikes . | . . . . . Average Slot Usage (%) 83 | . 85 85 85 80 Engine 13 | . 14 14 14 11 Leg 27 | . 28 28 28 27 Storage 14 | . 14 14 14 14 Energy Cannon 7 | . . . 8 11 Ballistic Gun 1 | . 6 . . 1 Ballistic Cannon 5 | . 10 14 5 . Launcher 13 | . 10 14 14 14 Naked Turns . | . . . . . Heaviest Build 19 | 11 16 13 19 19 Greatest Support 20 | 20 20 20 20 20 Greatest Overweight (x) 5 | 1 . . . 5 Average Overweight (x) . | . . . . . Largest Inventory Capacity 8 | 8 8 8 8 8 Average Capacity 7 | 7 8 8 8 8 Most Carried 8 | 7 6 6 7 8 Average Carried 2 | 2 4 6 6 7 Final Capacity 8 | 8 8 8 8 8 Final Carried 7 | 2 6 6 7 7 Class Distribution -------------------- 100% | Mutant Dominant Class ---------------- Mutant | -10/Materials Mutant | -10/Mines Mutant | -10/Exiles Mutant | -9/Mines Resources | -11 -10 -10 -10 -9 ----------- Run | Yrd Mat Min Exi Min Matter Collected 177 | 156 . . . 21 Remotely . | . . . . . Salvage Created 105 | . . 10 . 95 Parts 19 | . . 6 . 13 Haulers Intercepted . | . . . . . Recyclers Shooed . | . . . . . Parts Field Recycled . | . . . . . Retrieved Matter . | . . . . . Parts Self-Destructed . | . . . . . Prevented . | . . . . . Kills | -11 -10 -10 -10 -9 ------- Run | Yrd Mat Min Exi Min Combat Hostiles Destroyed 9 | . . 3 . 6 Guns 1 | . . . . 1 Cannons 3 | . . . . 3 AOE 5 | . . 3 . 2 Classes Destroyed 5 | . . 1 . 4 Worker 1 | . . . . 1 Tunneler 1 | . . . . 1 Swarmer 6 | . . 3 . 3 Zionite 1 | . . . . 1 Assembled 3 | . . . . 3 Best Kill Streak 5 | . . 3 . 5 Combat Bots Only 3 | . . 3 . 3 Max Kills in Single Turn 3 | . . 2 . 3 Gunslinging . | . . . . . Exploded 2 | . . 2 . 2 Melee . | . . . . . Uniques/NPCs Destroyed . | . . . . . Combat | -11 -10 -10 -10 -9 -------- Run | Yrd Mat Min Exi Min Hostile Shots Fired 58 | . . 4 . 54 Missed 21 | . . . . 21 Damage Taken 647 | . . 60 . 587 Core 252 | . . 16 . 236 Absorbed by Shields . | . . . . . Core Remaining (%) 100 | 100 . . . . Volleys Fired 20 | . 1 2 . 17 Largest 2 | . 1 2 . 1 Hottest 120 | . 39 69 . 120 Shots Fired 22 | . 1 4 . 17 Gun 9 | . . . . 9 Cannon 8 | . 1 2 . 5 Launcher 5 | . . 2 . 3 Special . | . . . . . Kinetic 12 | . 1 2 . 9 Thermal 5 | . . . . 5 Explosive 5 | . . 2 . 3 Electromagnetic . | . . . . . Robot Hit Streak 5 | . . 2 . 5 Robot Miss Streak 6 | . 1 2 . 6 Penetration Max . | . . . . . Secondary Targets . | . . . . . Shots Hit Robots 10 | . . 2 . 8 Core Hits 14 | . . 4 . 10 Critical Kills . | . . . . . Critical Parts Destroyed . | . . . . . Critical Strikes . | . . . . . Melee Attacks . | . . . . . Impact . | . . . . . Slashing . | . . . . . Piercing . | . . . . . Sneak Attacks . | . . . . . Combat Hostiles . | . . . . . Follow-up Attacks . | . . . . . Damage Inflicted 668 | . . 197 . 471 Guns 16 | . . . . 16 Cannons 201 | . . 19 . 182 Explosions 451 | . . 178 . 273 Melee . | . . . . . Ramming . | . . . . . Kinetic 35 | . . 19 . 16 Thermal 182 | . . . . 182 Explosive 451 | . . 178 . 273 Electromagnetic . | . . . . . Impact . | . . . . . Slashing . | . . . . . Piercing . | . . . . . Highest Corruption . | . . . . . Average Corruption . | . . . . . Corruption Purged . | . . . . . Corruption Blocked . | . . . . . Overload Shots . | . . . . . Overflow Damage 44 | . . 18 . 26 Projectiles 5 | . . . . 5 Explosions 39 | . . 18 . 21 Melee . | . . . . . Knockbacks 1 | . . 1 . . Impact . | . . . . . Kinetic 1 | . . 1 . . Secondary . | . . . . . Self-Inflicted Damage 132 | . . 32 . 100 Shots 4 | . . 1 . 3 Rammed . | . . . . . Targets Rammed . | . . . . . Kicked . | . . . . . Crushed . | . . . . . Highest Temperature 300 | . . 18 . 300 Average Temperature 149 | . . 10 . 185 Received Heat Transfer 20 | . . . . 20 Siege Activations . | . . . . . Robots Corrupted . | . . . . . Combat Hostiles . | . . . . . Parts Fried . | . . . . . Impact Corruptions . | . . . . . Robots Melted . | . . . . . Combat Hostiles . | . . . . . Parts Melted . | . . . . . Heat Transferred 400 | . . . . 400 Parts Sabotaged . | . . . . . Parts Stolen . | . . . . . Parts Stripped . | . . . . . Power Chain Reactions . | . . . . . Alert | -11 -10 -10 -10 -9 ------- Run | Yrd Mat Min Exi Min Peak Influence 112 | . . 94 . 112 Initial . | . . . . . Average 5 | . . 74 . 84 Maximum Alert Level . | . . . . . Low Security (%) 100 | 100 100 100 . 100 Level 1 . | . . . . . Level 2 . | . . . . . Level 3 . | . . . . . Level 4 . | . . . . . Level 5 . | . . . . . High Security . | . . . . . Max Security . | . . . . . Squads Dispatched 1 | . 1 . . . Investigation . | . . . . . Extermination . | . . . . . Reinforcement 1 | . 1 . . . Assault . | . . . . . Garrison . | . . . . . Intercept . | . . . . . Searches Triggered . | . . . . . Construction Impeded . | . . . . . Haulers Reinforced . | . . . . . Active Scanning Responses . | . . . . . Cargo Convoy Interrupts . | . . . . . Stealth | -11 -10 -10 -10 -9 --------- Run | Yrd Mat Min Exi Min Distress Signals . | . . . . . Communications Jammed . | . . . . . Distress Signals . | . . . . . Times Spotted 16 | . 1 3 . 12 Peak Tracking Total 7 | . 2 3 . 7 Tactical Retreats 1 | . . . . 1 Traps | -11 -10 -10 -10 -9 ------- Run | Yrd Mat Min Exi Min Traps Triggered . | . . . . . Indirectly . | . . . . . Trap Hack Attempts . | . . . . . Triggered . | . . . . . Disarmed . | . . . . . Reprogrammed . | . . . . . Reused . | . . . . . Traps Extracted . | . . . . . Installed . | . . . . . Triggered . | . . . . . Machines | -11 -10 -10 -10 -9 ---------- Run | Yrd Mat Min Exi Min Machines Disabled 1 | . . 1 . . Max in Single Turn 1 | . . 1 . . Machines Repaired . | . . . . . Machines Dismantled . | . . . . . Machines Sabotaged . | . . . . . Overloaded Fab Kills . | . . . . . Hacking | -11 -10 -10 -10 -9 --------- Run | Yrd Mat Min Exi Min Machines Accessed . | . . . . . Terminals . | . . . . . Fabricators . | . . . . . Repair Stations . | . . . . . Recycling Units . | . . . . . Scanalyzers . | . . . . . Garrison Access . | . . . . . Total Hacks . | . . . . . Successful . | . . . . . Failed . | . . . . . Catastrophic . | . . . . . Database Lockouts . | . . . . . Manual 1 | . . . 1 . Terminals . | . . . . . Fabricators . | . . . . . Repair Stations . | . . . . . Recycling Units . | . . . . . Scanalyzers . | . . . . . Garrison Access . | . . . . . Terminal Hacks . | . . . . . Fabricator Hacks . | . . . . . Repair Station Hacks . | . . . . . Recycling Unit Hacks . | . . . . . Scanalyzer . | . . . . . Garrison Access Hacks . | . . . . . Unauthorized Hacks . | . . . . . Terminals . | . . . . . Fabricators . | . . . . . Repair Stations . | . . . . . Recycling Units . | . . . . . Scanalyzers . | . . . . . Garrison Access . | . . . . . Data Cores Recovered . | . . . . . Used . | . . . . . Hacking Detections . | . . . . . Full Trace Events . | . . . . . Feedback Events . | . . . . . Feedback Blocked . | . . . . . Robot Schematics Acquired . | . . . . . Robots Built . | . . . . . Authchips . | . . . . . Time . | . . . . . Total Robot Build Rating . | . . . . . Part Schematics Acquired . | . . . . . Parts Built . | . . . . . Authchips . | . . . . . Time . | . . . . . Total Part Build Rating . | . . . . . Parts Repaired . | . . . . . Time . | . . . . . Parts Recycled . | . . . . . Recycled Matter . | . . . . . Retrieved Matter . | . . . . . Retrieved Components . | . . . . . Parts Scanalyzed . | . . . . . Part Schematics Acquired . | . . . . . Parts Damaged . | . . . . . Bothacking | -11 -10 -10 -10 -9 ------------ Run | Yrd Mat Min Exi Min Used RIF Installer . | . . . . . Robots Hacked . | . . . . . Non-combat . | . . . . . Combat . | . . . . . Robot Hacks Applied . | . . . . . Relay Couplers Released . | . . . . . Fabnet Peak Effective % . | . . . . . Robots Rewired . | . . . . . Allies Hacked . | . . . . . Hacks Repelled . | . . . . . Allies | -11 -10 -10 -10 -9 -------- Run | Yrd Mat Min Exi Min Total Allies . | . . . . . Largest Group . | . . . . . Highest-Rated Group . | . . . . . Highest-Rated Ally . | . . . . . Total Orders . | . . . . . Ally Attacks . | . . . . . Total Damage . | . . . . . Kills . | . . . . . Allies Corrupted . | . . . . . Allies Melted . | . . . . . Intel | -11 -10 -10 -10 -9 ------- Run | Yrd Mat Min Exi Min Robot Analysis Total . | . . . . . Derelict Logs Recovered . | . . . . . Drone Launches . | . . . . . Drone Recoveries . | . . . . . Exploration | -11 -10 -10 -10 -9 ------------- Run | Yrd Mat Min Exi Min Turns Passed 2823 | 2233 95 13 331 151 Spaces Moved 594 | 151 72 5 274 92 Core 29 | 28 . . . 1 Treads . | . . . . . Legs 565 | 123 72 5 274 91 Wheels . | . . . . . Hover . | . . . . . Flight . | . . . . . Fastest Speed 50 | 50 120 120 120 120 Average Speed 117 | 109 120 120 120 122 Slowest Speed 300 | 120 120 120 120 300 Overloaded Moves . | . . . . . Propulsion Burnouts . | . . . . . Robots Hopped . | . . . . . Cave-ins Triggered . | . . . . . Exploration Rate (%) 25 | 15 14 3 66 30 Regions Visited 4 Branch Regions 3 Pre-discovered Areas . | . . . . . Known Exits Taken . | . . . . . Unknown Exits Taken 4 | 1 1 1 1 . Scrap Searched . | . . . . . Spaces Dug . | . . . . . Terrain Destroyed 44 | . . 12 . 32 Melee . | . . . . . Projectile . | . . . . . AOE 44 | . . 12 . 32 Terrain Rammed . | . . . . . Walls Destroyed . | . . . . . Machines Disabled . | . . . . . Actions | -11 -10 -10 -10 -9 --------- Run | Yrd Mat Min Exi Min Total 2697 | 2219 80 7 275 116 Wait 2059 | 2056 . . . 3 Move 590 | 150 71 4 273 92 Hop . | . . . . . Pick Up 12 | 7 4 . 1 . Fast Attach 1 | 1 . . . . Attach 9 | 5 2 . . 2 Detach 4 | . 2 . . 2 Swap 2 | . . 1 1 . Drop . | . . . . . Fire 20 | . 1 2 . 17 Melee . | . . . . . Ram . | . . . . . Kick . | . . . . . Crush . | . . . . . Escape Stasis . | . . . . . Rewire . | . . . . . Trap . | . . . . . Miscellaneous . | . . . . . Route ------- -11/Scrapyard -10/Materials -10/Mines -10/Exiles -9/Mines History --------- Turn | Location | Event 7 | -11/Scrapyard | Discovered new exit (range 16) 2234 | -11/Scrapyard | Entered Materials 2235 | -10/Materials | Build established: Mutant 2299 | -10/Materials | Discovered new exit (range 15) 2329 | -10/Materials | Entered Mines 2334 | -10/Mines | Discovered new exit (range 5) 2342 | -10/Mines | Entered Exiles 2372 | -10/Exiles | Met 8R-AWN 2393 | -10/Exiles | Met EX-HEX 2432 | -10/Exiles | Met EX-BIN 2450 | -10/Exiles | Aligned with FarCom system 2452 | -10/Exiles | Given EX-Vault access code 2479 | -10/Exiles | Opened EX-Vault 2486 | -10/Exiles | Found Prototype Energy Cannon 2487 | -10/Exiles | Identified Gui. Plasma Cannon 2515 | -10/Exiles | Warned to stay clear of 0b10 Research branches 2531 | -10/Exiles | Exiles lab attacked by MAIN.C 2659 | -10/Exiles | Discovered new exit (range 14) 2673 | -10/Exiles | Left Exiles lab with Gui. Plasma Cannon 2673 | -10/Exiles | Entered Mines 2774 | -9/Mines | Assembled infested the area 2813 | -9/Mines | Core integrity fell below 50% 2822 | -9/Mines | Core integrity fell below 20% 2824 | -9/Mines | Destroyed by as-46091 with Assembled Heavy Rifle Last Messages --------------- 02675_ S-10 Pest destroyed. 02675_ GM-J5T destroyed. [Achievement: Backstab] 02693_ S-10 Pest destroyed. 02696_ Acquired 8 matter. 02697_ Acquired 3 matter. 02698_ Acquired 10 matter. 02701_ The unstable cave ceiling collapses. 02701_ Lgt. Assault Rifle crushed. 02774_ ALERT: Infestation in the mines, dispatching Demolisher response squad. 02796_ Lgt. Ion Engine destroyed. 02797_ T-07 Excavator destroyed. 02801_ as-10738 destroyed. 02803_ The unstable cave ceiling collapses. 02803_ Destroyed Asb. F-torch. 02805_ as-91428 destroyed. 02805_ Knocked back. 02813_ as-61956 destroyed. 02819_ Aluminum Leg destroyed. Map ----- +----------------------------------------------------+ | ?????????????????????????????????????????????????? | | ?????????????????????????????????????????????????? | | ?????????????????????????????????????????????????? | | ?????????????????????????????????????????????????? | | ?????????????????????????????????????????????????? | | ?????????????????????????????????????????????????? | | ?????????????????????????????????????????????????? | | ?????????????????????????????????????????????????? | | ?????????????????????????????????????????????????? | | ?????????????????????????????????????????????????? | | ?????????????????????????????????????????????????? | | ?????????????????????????????????????????????????? | | ?????????????????????????????????????????????????? | | ?????????????????????????????????????????????????? | | ????????????????? ????????????????????????????? | | ????????????????? ????????????????????????????? | | ????????????????# ???????????????????????????? | | ???????????##???? #??????????????????????????? | | ???????????# #??? #??####???????????????????? | | ???????????# #??# ### ##??????????????????? | | ???????????# ???# #?####?????????????? | | ????????????# ?????# ### ##????????????? | | ?????????????# ##??????# #????????????? | | ?????????????# #######?# ##???????????? | | ?????????????# ## ### ###""###?#### | | ?????????????# @ ## X ### # | | ?????????????# aa ##### # | | ????????#### ##???# ### | | ????## ##????## | | % ## #??????## | | a #???????## | | =! % % % ## #????????## #### | | ## # #### ##?????????####??## | | ?????##???## =%* ####??####?????????????????# | | ???????????# = #?????????????????????????# # | | ??????## ###=###???????????????????????# ### | | ??????# !|#????????????????????????# ##?? | | ??????# ## ######???????????????????# ##??? | | ??????# ??# #???????????????????## #????? | | ???????# ???###### #????????????????????# ?????? | | ???????##???????????????????????????????# ?????? | | ????????????????????????????????????????# ?????? | | ????????????????????????????????????????## ?????? | | ?????????????????????????????????????????##??????? | | ?????????????????????????????????????????????????? | | ?????????????????????????????????????????????????? | | ?????????????????????????????????????????????????? | | ?????????????????????????????????????????????????? | | ?????????????????????????????????????????????????? | | ?????????????????????????????????????????????????? | +----------------------------------------------------+ Best States ------------- Heat Dissipation 25 Energy Generation 10 Energy Capacity 125 Matter Stores 196 Matter Capacity 300 Sight Range 16 Terrain Scan Density 10 Evasion (%) 55 Item Schematics ----------------- None Robot Schematics ------------------ None Fabricated ------------ Nothing Alien Tech Used ----------------- None Achievements -------------- Backstab Challenges ------------ None Game ------ Seed HoverCooledMapper Manual? 0 Play Time 00:11:02 Cumulative 2.5 hours Start 2024.03.31 @ 21:25:34 End 2024.03.31 @ 21:36:41 Sessions 1 Manual Loads 0 Difficulty Rogue Special Mode None Game No. 6 Rogue 6 Adventurer 0 Explorer 0 Win Type - Total 0 Types 0/0/0/0/0/0/0/0/0 Lore% 5 Gallery% 7 Achievement% 8 Wizard Run 0 Options --------- Layout 1 ASCII 0 Keyboard 0 Movement Mouse Keybinds 0 Fullscreen 1 Font 32/SmallcapsGlow Map View 50x35 Zoom Use 0% Tactical HUD 1 Map Filters NONE Filters NONE Steam 1 RUN: 25251d18-9991-4512-a034-72e36ce78428